[Event "*** Titled Tuesday 3|2 Blitz"]
[Site "Chess.com"]
[Date "2015.05.05"]
[Round "4"]
[White "destroyer305"]
[Black "Haykos"]
[Result "1-0"]
[WhiteElo "2150"]
[BlackElo "2189"]
[TimeControl "180+2"]
[EndTime "11:47:01 PDT"]
[Termination "destroyer305 won by resignation"]

1. e4 {[%clk 0:03:01.9]} 1... e5 {[%clk 0:02:56]} 2. Nf3 {[%clk 0:03:02.6]} 2...
Nc6 {[%clk 0:02:57.4]} 3. d4 {[%clk 0:03:04.2]} 3... exd4 {[%clk 0:02:57.9]} 4.
Bc4 {[%clk 0:03:05.9]} 4... Nf6 {[%clk 0:02:58.2]} 5. e5 {[%clk 0:03:07.6]} 5...
d5 {[%clk 0:02:59.2]} 6. Bb5 {[%clk 0:03:09.3]} 6... Ne4 {[%clk 0:03:00.7]} 7.
Nxd4 {[%clk 0:03:10.9]} 7... Bd7 {[%clk 0:03:02.3]} 8. Bxc6 {[%clk 0:03:12.5]}
8... Bxc6 {[%clk 0:03:04.2]} 9. O-O {[%clk 0:03:14.2]} 9... Bc5 {[%clk
0:03:05.1]} 10. f3 {[%clk 0:03:15.4]} 10... Ng5 {[%clk 0:03:00.4]} 11. f4 {[%clk
0:03:16.7]} 11... Ne4 {[%clk 0:02:53.2]} 12. Be3 {[%clk 0:03:17.6]} 12... O-O
{[%clk 0:02:53.8]} 13. Nd2 {[%clk 0:03:18]} 13... f5 {[%clk 0:02:47.3]} 14. Qe2
{[%clk 0:03:10.8]} 14... Qe7 {[%clk 0:02:41.9]} 15. Nxe4 {[%clk 0:03:06.1]}
15... Bxd4 {[%clk 0:02:18.8]} 16. Nf6+ {[%clk 0:03:01.5]} 16... Rxf6 {[%clk
0:02:15.7]} 17. Bxd4 {[%clk 0:03:03.1]} 17... Rh6 {[%clk 0:02:12.9]} 18. Qd3
{[%clk 0:02:54.4]} 18... Rf8 {[%clk 0:02:11.4]} 19. Rf3 {[%clk 0:02:53]} 19...
a6 {[%clk 0:02:12.1]} 20. Re1 {[%clk 0:02:51]} 20... Bb5 {[%clk 0:02:12.3]} 21.
Qe3 {[%clk 0:02:51.1]} 21... Re8 {[%clk 0:02:07.4]} 22. Rg3 {[%clk 0:02:46.6]}
22... Re6 {[%clk 0:02:02.3]} 23. b3 {[%clk 0:02:42.5]} 23... b6 {[%clk
0:01:59.8]} 24. Qf3 {[%clk 0:02:41]} 24... Bc6 {[%clk 0:02:00.3]} 25. Qh5 {[%clk
0:02:40.2]} 25... g6 {[%clk 0:02:00.9]} 26. Qxf5 {[%clk 0:02:39.9]} 26... Bd7
{[%clk 0:01:46.2]} 27. Qd3 {[%clk 0:02:37.3]} 27... c5 {[%clk 0:01:46.7]} 28.
Bb2 {[%clk 0:02:37.1]} 28... d4 {[%clk 0:01:45.7]} 29. c3 {[%clk 0:02:31.7]}
29... Bb5 {[%clk 0:01:45.3]} 30. Qd2 {[%clk 0:02:19.6]} 30... dxc3 {[%clk
0:01:17.7]} 31. Qxc3 {[%clk 0:02:21.5]} 31... Rf8 {[%clk 0:01:16.4]} 32. a4
{[%clk 0:02:19.1]} 32... Bc6 {[%clk 0:01:17]} 33. Qc4 {[%clk 0:02:19]} 33... b5
{[%clk 0:01:14.5]} 34. axb5 {[%clk 0:02:16.6]} 34... axb5 {[%clk 0:01:16.4]} 35.
Qc1 {[%clk 0:02:16.3]} 35... Qh4 {[%clk 0:01:05.4]} 36. Rf1 {[%clk 0:02:14.9]}
36... Be4 {[%clk 0:00:54.4]} 37. Qxc5 {[%clk 0:02:13.2]} 37... Rxf4 {[%clk
0:00:55.3]} 38. Qc8+ {[%clk 0:02:13.7]} 38... Kf7 {[%clk 0:00:56]} 39. Qd7+
{[%clk 0:02:03]} 39... Re7 {[%clk 0:00:55.5]} 40. e6+ {[%clk 0:02:04.6]} 40...
Kf8 {[%clk 0:00:47.8]} 41. Qd8+ {[%clk 0:02:05.5]} 1-0

[Event "*** Titled Tuesday 3|2 Blitz"]
[Site "Chess.com"]
[Date "2015.05.05"]
[Round "4"]
[White "Daniel_Fridman"]
[Black "Inopov"]
[Result "1/2-1/2"]
[WhiteElo "2632"]
[BlackElo "2496"]
[TimeControl "180+2"]
[EndTime "11:47:08 PDT"]
[Termination "Game drawn by repetition"]

1. d4 {[%clk 0:03:01.9]} 1... d5 {[%clk 0:03:01]} 2. Nf3 {[%clk 0:03:02.7]} 2...
Bf5 {[%clk 0:02:59.4]} 3. c4 {[%clk 0:03:00.6]} 3... e6 {[%clk 0:03:00.6]} 4.
Nc3 {[%clk 0:03:01.4]} 4... Nf6 {[%clk 0:03:01.2]} 5. cxd5 {[%clk 0:03:00]} 5...
exd5 {[%clk 0:03:01.9]} 6. Bg5 {[%clk 0:03:01]} 6... c6 {[%clk 0:02:56.4]} 7. e3
{[%clk 0:03:01.9]} 7... Nbd7 {[%clk 0:02:57]} 8. Bd3 {[%clk 0:03:03]} 8... Bxd3
{[%clk 0:02:57.7]} 9. Qxd3 {[%clk 0:03:04.9]} 9... Be7 {[%clk 0:02:56.1]} 10.
O-O {[%clk 0:03:05.6]} 10... O-O {[%clk 0:02:56.9]} 11. Rab1 {[%clk 0:03:07]}
11... Re8 {[%clk 0:02:50.5]} 12. b4 {[%clk 0:03:07.4]} 12... a6 {[%clk
0:02:48.3]} 13. a4 {[%clk 0:03:07.7]} 13... Ne4 {[%clk 0:02:48.4]} 14. Bxe7
{[%clk 0:03:05.7]} 14... Qxe7 {[%clk 0:02:50.3]} 15. Qc2 {[%clk 0:02:57.5]}
15... Nd6 {[%clk 0:02:43.4]} 16. b5 {[%clk 0:02:51.3]} 16... axb5 {[%clk
0:02:36.5]} 17. axb5 {[%clk 0:02:53.2]} 17... Nc4 {[%clk 0:02:38]} 18. bxc6
{[%clk 0:02:49.4]} 18... bxc6 {[%clk 0:02:39.9]} 19. Rb7 {[%clk 0:02:49.6]}
19... Reb8 {[%clk 0:02:31.2]} 20. Qb1 {[%clk 0:02:01.6]} 20... Qa3 {[%clk
0:01:53.1]} 21. Ne2 {[%clk 0:01:38]} 21... Qa6 {[%clk 0:01:44.3]} 22. Rxb8+
{[%clk 0:01:39.1]} 22... Rxb8 {[%clk 0:01:46.2]} 23. Qf5 {[%clk 0:01:39.2]}
23... Nf6 {[%clk 0:01:39.2]} 24. Ng3 {[%clk 0:01:40.1]} 24... Qa2 {[%clk
0:01:10.3]} 25. h3 {[%clk 0:01:24.2]} 25... h6 {[%clk 0:01:09.2]} 26. Kh2 {[%clk
0:01:11.5]} 26... Rb2 {[%clk 0:00:58.5]} 27. Qc8+ {[%clk 0:00:35.1]} 27... Kh7
{[%clk 0:00:58.3]} 28. Qf5+ {[%clk 0:00:36.6]} 28... Kg8 {[%clk 0:00:59.6]} 29.
Qc8+ {[%clk 0:00:37.6]} 29... Kh7 {[%clk 0:01:00.8]} 30. Qf5+ {[%clk 0:00:38.6]}
30... Kg8 {[%clk 0:01:01.4]} 1/2-1/2

[Event "*** Titled Tuesday 3|2 Blitz"]
[Site "Chess.com"]
[Date "2015.05.05"]
[Round "4"]
[White "pKiLz5Rn9b"]
[Black "Schemato"]
[Result "1-0"]
[WhiteElo "2262"]
[BlackElo "2114"]
[TimeControl "180+2"]
[EndTime "11:47:21 PDT"]
[Termination "pKiLz5Rn9b won by resignation"]

1. e4 {[%clk 0:02:49.6]} 1... e6 {[%clk 0:03:00.5]} 2. d4 {[%clk 0:02:50.3]}
2... d5 {[%clk 0:03:01.6]} 3. Nd2 {[%clk 0:02:51.6]} 3... Be7 {[%clk 0:03:02.4]}
4. Ngf3 {[%clk 0:02:46.5]} 4... Nf6 {[%clk 0:03:03.4]} 5. Bd3 {[%clk 0:02:47.7]}
5... c5 {[%clk 0:03:04]} 6. exd5 {[%clk 0:02:49]} 6... Qxd5 {[%clk 0:03:01.8]}
7. dxc5 {[%clk 0:02:47.5]} 7... O-O {[%clk 0:02:54.5]} 8. O-O {[%clk 0:02:47.9]}
8... a5 {[%clk 0:02:53.6]} 9. Qe2 {[%clk 0:02:46.2]} 9... Na6 {[%clk 0:02:51.1]}
10. Ne4 {[%clk 0:02:38.8]} 10... Nxc5 {[%clk 0:02:46]} 11. Nxc5 {[%clk
0:02:39.4]} 11... Qxc5 {[%clk 0:02:43.2]} 12. Bg5 {[%clk 0:02:37.1]} 12... Bd7
{[%clk 0:02:21.4]} 13. Ne5 {[%clk 0:02:23.3]} 13... Rfd8 {[%clk 0:02:05.2]} 14.
Bh4 {[%clk 0:02:06.4]} 14... Be8 {[%clk 0:01:56.8]} 15. Rfe1 {[%clk 0:01:58.5]}
15... Qb4 {[%clk 0:01:37.7]} 16. Bg3 {[%clk 0:01:22.8]} 16... Rac8 {[%clk
0:01:32.6]} 17. c3 {[%clk 0:01:21.5]} 17... Qa4 {[%clk 0:01:17.6]} 18. Bc2
{[%clk 0:01:18]} 18... Qb5 {[%clk 0:01:16.7]} 19. Qxb5 {[%clk 0:01:17]} 19...
Bxb5 {[%clk 0:01:17.1]} 20. Rad1 {[%clk 0:01:17.9]} 20... Kf8 {[%clk 0:00:52.8]}
21. f3 {[%clk 0:01:08.3]} 21... h6 {[%clk 0:00:35.4]} 22. Bf2 {[%clk 0:01:08.1]}
22... Rxd1 {[%clk 0:00:16.4]} 23. Rxd1 {[%clk 0:01:09.3]} 23... Nd5 {[%clk
0:00:16.9]} 24. Be4 {[%clk 0:01:03.3]} 24... Bc5 {[%clk 0:00:15]} 25. Bxc5+
{[%clk 0:01:00.5]} 25... Rxc5 {[%clk 0:00:15.3]} 26. c4 {[%clk 0:01:01.9]} 26...
Bxc4 {[%clk 0:00:15.1]} 27. Nd7+ {[%clk 0:01:03.1]} 1-0

[Event "*** Titled Tuesday 3|2 Blitz"]
[Site "Chess.com"]
[Date "2015.05.05"]
[Round "4"]
[White "hellokostya"]
[Black "pedromartinez91"]
[Result "1-0"]
[WhiteElo "2281"]
[BlackElo "2158"]
[TimeControl "180+2"]
[EndTime "11:47:59 PDT"]
[Termination "hellokostya won by resignation"]

1. d4 {[%clk 0:03:01.9]} 1... d5 {[%clk 0:03:00.5]} 2. c4 {[%clk 0:03:02.6]}
2... dxc4 {[%clk 0:03:01.6]} 3. Nf3 {[%clk 0:03:03.6]} 3... Nf6 {[%clk
0:03:02.3]} 4. e3 {[%clk 0:03:04.9]} 4... e6 {[%clk 0:03:03.2]} 5. Bxc4 {[%clk
0:03:05.8]} 5... c5 {[%clk 0:03:04.4]} 6. O-O {[%clk 0:03:05.9]} 6... Nc6 {[%clk
0:03:05.3]} 7. dxc5 {[%clk 0:02:44.2]} 7... Bxc5 {[%clk 0:03:05.7]} 8. Qxd8+
{[%clk 0:02:43.9]} 8... Kxd8 {[%clk 0:03:06.6]} 9. Nbd2 {[%clk 0:02:41.6]} 9...
Ke7 {[%clk 0:03:06.8]} 10. Be2 {[%clk 0:02:38.8]} 10... Bd6 {[%clk 0:03:07.1]}
11. a3 {[%clk 0:02:36.9]} 11... Bd7 {[%clk 0:03:00]} 12. b4 {[%clk 0:02:35]}
12... a6 {[%clk 0:02:57.4]} 13. Nc4 {[%clk 0:02:32.8]} 13... Bc7 {[%clk
0:02:58.2]} 14. Bb2 {[%clk 0:02:32]} 14... Rhd8 {[%clk 0:02:57.3]} 15. Rfd1
{[%clk 0:02:31.4]} 15... Be8 {[%clk 0:02:56.9]} 16. Nfd2 {[%clk 0:02:23.7]}
16... b5 {[%clk 0:02:53.5]} 17. Bxf6+ {[%clk 0:02:12.9]} 17... gxf6 {[%clk
0:02:53.4]} 18. Nb2 {[%clk 0:02:14.8]} 18... Be5 {[%clk 0:02:47]} 19. Rab1
{[%clk 0:02:15.4]} 19... f5 {[%clk 0:02:47.8]} 20. Nd3 {[%clk 0:02:10.8]} 20...
Bd6 {[%clk 0:02:46]} 21. Nb3 {[%clk 0:02:09.4]} 21... a5 {[%clk 0:02:43.6]} 22.
Bf3 {[%clk 0:02:04]} 22... a4 {[%clk 0:02:24.5]} 23. Nd4 {[%clk 0:01:50]} 23...
Nxd4 {[%clk 0:02:23]} 24. Bxa8 {[%clk 0:01:50.9]} 24... Nb3 {[%clk 0:02:14.6]}
25. Bf3 {[%clk 0:01:47]} 25... Rc8 {[%clk 0:02:15.3]} 26. Rb2 {[%clk 0:01:40]}
26... Rc3 {[%clk 0:02:08.2]} 27. g3 {[%clk 0:01:40]} 27... f6 {[%clk 0:02:05.2]}
28. Kg2 {[%clk 0:01:36.4]} 28... e5 {[%clk 0:02:03.2]} 29. Bd5 {[%clk
0:01:34.3]} 29... Bh5 {[%clk 0:02:02.2]} 30. f3 {[%clk 0:01:27.9]} 30... e4
{[%clk 0:02:03.2]} 31. Nf4 {[%clk 0:01:21.1]} 31... Bxf3+ {[%clk 0:02:02.9]} 32.
Kh3 {[%clk 0:01:21.1]} 32... Bxd1 {[%clk 0:02:00.1]} 33. Bxb3 {[%clk 0:01:20.1]}
33... axb3 {[%clk 0:01:57]} 34. Nd5+ {[%clk 0:01:20.3]} 34... Ke6 {[%clk
0:01:49.2]} 35. Nxc3 {[%clk 0:01:22.2]} 35... Bc2 {[%clk 0:01:50.4]} 36. Nxb5
{[%clk 0:01:05.3]} 36... Be5 {[%clk 0:01:51.4]} 37. Nd4+ {[%clk 0:01:06.7]}
37... Kd5 {[%clk 0:01:33.1]} 38. Rxc2 {[%clk 0:00:52.4]} 38... Bxd4 {[%clk
0:01:03.5]} 39. Rd2 {[%clk 0:00:52.9]} 39... Kc4 {[%clk 0:00:58.8]} 40. Rxd4+
{[%clk 0:00:53.2]} 40... Kc3 {[%clk 0:00:59.9]} 41. b5 {[%clk 0:00:54.4]} 41...
Kc2 {[%clk 0:00:53.1]} 42. b6 {[%clk 0:00:54.5]} 1-0

[Event "*** Titled Tuesday 3|2 Blitz"]
[Site "Chess.com"]
[Date "2015.05.05"]
[Round "4"]
[White "dabee"]
[Black "igorkovalenko"]
[Result "0-1"]
[WhiteElo "2353"]
[BlackElo "2511"]
[TimeControl "180+2"]
[EndTime "11:48:08 PDT"]
[Termination "igorkovalenko won by resignation"]

1. d4 {[%clk 0:03:01.9]} 1... Nf6 {[%clk 0:03:00.8]} 2. Bg5 {[%clk 0:03:03]}
2... d5 {[%clk 0:02:57.4]} 3. e3 {[%clk 0:03:01.4]} 3... e6 {[%clk 0:02:58.6]}
4. Bd3 {[%clk 0:02:59.4]} 4... Be7 {[%clk 0:02:59.1]} 5. Nd2 {[%clk 0:03:00.4]}
5... c5 {[%clk 0:02:57.7]} 6. c3 {[%clk 0:03:00.1]} 6... Nc6 {[%clk 0:02:58.1]}
7. Ngf3 {[%clk 0:03:00.5]} 7... Nd7 {[%clk 0:02:57.6]} 8. Bf4 {[%clk 0:02:58.2]}
8... a6 {[%clk 0:02:54.9]} 9. Qe2 {[%clk 0:02:54.8]} 9... c4 {[%clk 0:02:52]}
10. Bc2 {[%clk 0:02:53.3]} 10... f5 {[%clk 0:02:52.6]} 11. b3 {[%clk 0:02:52.1]}
11... b5 {[%clk 0:02:51.9]} 12. a4 {[%clk 0:02:52.3]} 12... Bb7 {[%clk
0:02:50.4]} 13. h3 {[%clk 0:02:47.1]} 13... g5 {[%clk 0:02:31.5]} 14. Bh2 {[%clk
0:02:45.3]} 14... h5 {[%clk 0:02:32.9]} 15. Ne5 {[%clk 0:02:25.8]} 15... Ndxe5
{[%clk 0:02:31.7]} 16. dxe5 {[%clk 0:02:19.2]} 16... g4 {[%clk 0:02:33]} 17. Bf4
{[%clk 0:02:16.2]} 17... Kf7 {[%clk 0:02:31.2]} 18. hxg4 {[%clk 0:01:47.1]}
18... hxg4 {[%clk 0:02:32.2]} 19. Rxh8 {[%clk 0:01:41.7]} 19... Qxh8 {[%clk
0:02:34.1]} 20. axb5 {[%clk 0:01:42.6]} 20... axb5 {[%clk 0:02:35.1]} 21. Rxa8
{[%clk 0:01:40.7]} 21... Bxa8 {[%clk 0:02:37]} 22. bxc4 {[%clk 0:01:38.6]} 22...
bxc4 {[%clk 0:02:38.9]} 23. f3 {[%clk 0:01:36.2]} 23... Nxe5 {[%clk 0:02:33.7]}
24. e4 {[%clk 0:01:17.3]} 24... Qh1+ {[%clk 0:02:28.6]} 25. Qf1 {[%clk
0:00:53.6]} 25... Qxf1+ {[%clk 0:02:25.5]} 26. Kxf1 {[%clk 0:00:49.2]} 26... Ng6
{[%clk 0:02:25.1]} 27. Be3 {[%clk 0:00:47.5]} 27... f4 {[%clk 0:02:18]} 28. Bd4
{[%clk 0:00:48]} 28... g3 {[%clk 0:02:14.4]} 29. exd5 {[%clk 0:00:46.7]} 29...
exd5 {[%clk 0:02:15.4]} 30. Bxg6+ {[%clk 0:00:42.8]} 30... Kxg6 {[%clk
0:02:16.3]} 31. Ke2 {[%clk 0:00:41.1]} 31... Bc6 {[%clk 0:02:12.7]} 32. Kd1
{[%clk 0:00:37.3]} 32... Ba4+ {[%clk 0:02:12]} 33. Ke2 {[%clk 0:00:38.2]} 33...
Bc2 {[%clk 0:02:11.2]} 34. Kf1 {[%clk 0:00:37.9]} 34... Bd6 {[%clk 0:02:09.2]}
35. Kg1 {[%clk 0:00:37.5]} 35... Kf5 {[%clk 0:02:10.2]} 36. Kf1 {[%clk
0:00:38.2]} 36... Ke6 {[%clk 0:02:11.5]} 37. Ke2 {[%clk 0:00:35.3]} 37... Kd7
{[%clk 0:02:12.9]} 38. Nf1 {[%clk 0:00:36]} 38... Bd3+ {[%clk 0:02:09.8]} 39.
Ke1 {[%clk 0:00:36.3]} 39... Kc6 {[%clk 0:02:11]} 40. Nd2 {[%clk 0:00:37.3]}
40... Bc2 {[%clk 0:02:10.7]} 41. Nf1 {[%clk 0:00:33.4]} 41... Kb5 {[%clk
0:02:10.4]} 42. Kd2 {[%clk 0:00:31.4]} 42... Bd3 {[%clk 0:02:11.7]} 43. Ke1
{[%clk 0:00:32.3]} 43... Ka4 {[%clk 0:02:12.7]} 44. Nd2 {[%clk 0:00:33]} 44...
Bc2 {[%clk 0:02:14]} 45. Nf1 {[%clk 0:00:32.3]} 45... Kb3 {[%clk 0:02:13.8]} 46.
Nd2+ {[%clk 0:00:32.7]} 46... Kb2 {[%clk 0:02:14.7]} 47. Nf1 {[%clk 0:00:33.4]}
47... Bd3 {[%clk 0:02:15.6]} 48. Nd2 {[%clk 0:00:33]} 48... Kc2 {[%clk
0:02:16.4]} 49. Nf1 {[%clk 0:00:33.9]} 49... Ba3 {[%clk 0:02:16.4]} 50. Be5
{[%clk 0:00:32.2]} 50... Bc1 {[%clk 0:02:17.3]} 51. Bd4 {[%clk 0:00:31.6]} 51...
Bxf1 {[%clk 0:02:17.4]} 52. Kxf1 {[%clk 0:00:32.1]} 52... Bd2 {[%clk 0:02:18.5]}
53. Be5 {[%clk 0:00:33.4]} 53... Kd3 {[%clk 0:02:17.3]} 54. Bd6 {[%clk
0:00:27.6]} 54... Kxc3 {[%clk 0:02:17.7]} 55. Be5+ {[%clk 0:00:27.9]} 55... Kd3
{[%clk 0:02:18.3]} 0-1

[Event "*** Titled Tuesday 3|2 Blitz"]
[Site "Chess.com"]
[Date "2015.05.05"]
[Round "4"]
[White "eltenedor"]
[Black "jup1978"]
[Result "0-1"]
[WhiteElo "1951"]
[BlackElo "2144"]
[TimeControl "180+2"]
[EndTime "11:48:53 PDT"]
[Termination "jup1978 won on time"]

1. c4 {[%clk 0:02:17.3]} 1... e5 {[%clk 0:02:50.6]} 2. g3 {[%clk 0:02:16.9]}
2... Nf6 {[%clk 0:02:51.3]} 3. Bg2 {[%clk 0:02:17.1]} 3... c6 {[%clk 0:02:53.2]}
4. d4 {[%clk 0:02:16]} 4... Bb4+ {[%clk 0:02:54.1]} 5. Bd2 {[%clk 0:02:14.5]}
5... Bxd2+ {[%clk 0:02:56]} 6. Qxd2 {[%clk 0:02:14.8]} 6... d6 {[%clk
0:02:57.9]} 7. Nc3 {[%clk 0:02:13]} 7... O-O {[%clk 0:02:57.8]} 8. e3 {[%clk
0:02:12.7]} 8... Be6 {[%clk 0:02:56.8]} 9. b3 {[%clk 0:02:11.6]} 9... exd4
{[%clk 0:02:55.1]} 10. Qxd4 {[%clk 0:02:10.4]} 10... d5 {[%clk 0:02:54.9]} 11.
cxd5 {[%clk 0:02:08.4]} 11... cxd5 {[%clk 0:02:55.9]} 12. Nge2 {[%clk
0:02:05.7]} 12... Nc6 {[%clk 0:02:55.4]} 13. Qd2 {[%clk 0:02:00.2]} 13... d4
{[%clk 0:02:51.5]} 14. Nxd4 {[%clk 0:01:36.6]} 14... Nxd4 {[%clk 0:02:51.4]} 15.
Qxd4 {[%clk 0:01:32.5]} 15... Qa5 {[%clk 0:02:51.1]} 16. b4 {[%clk 0:01:26.1]}
16... Qa3 {[%clk 0:02:48.6]} 17. Nb5 {[%clk 0:01:19.6]} 17... Qa4 {[%clk
0:02:42.6]} 18. Nc3 {[%clk 0:01:08.7]} 18... Qa3 {[%clk 0:02:38.2]} 19. Nb5
{[%clk 0:01:05.8]} 19... Qa4 {[%clk 0:02:37.1]} 20. Nc3 {[%clk 0:00:54.8]} 20...
Qc2 {[%clk 0:02:38]} 21. Qd2 {[%clk 0:00:51.3]} 21... Qxd2+ {[%clk 0:02:33]} 22.
Kxd2 {[%clk 0:00:51.5]} 22... Rfd8+ {[%clk 0:02:34.9]} 23. Kc2 {[%clk 0:00:50]}
23... Rac8 {[%clk 0:02:33.8]} 24. Rhd1 {[%clk 0:00:42.1]} 24... Rxd1 {[%clk
0:02:33.3]} 25. Rxd1 {[%clk 0:00:41.5]} 25... Bf5+ {[%clk 0:02:35.2]} 26. Kb2
{[%clk 0:00:34.9]} 26... g6 {[%clk 0:02:34.4]} 27. e4 {[%clk 0:00:31.7]} 27...
Be6 {[%clk 0:02:34.6]} 28. Nd5 {[%clk 0:00:29.1]} 28... Ng4 {[%clk 0:02:33.4]}
29. Ne7+ {[%clk 0:00:27.2]} 29... Kf8 {[%clk 0:02:30.5]} 30. Nxc8 {[%clk
0:00:28]} 30... Nxf2 {[%clk 0:02:32.4]} 31. Rd2 {[%clk 0:00:26.6]} 31... Ng4
{[%clk 0:02:31.2]} 32. Nd6 {[%clk 0:00:24.3]} 32... Ke7 {[%clk 0:02:31.3]} 33.
h3 {[%clk 0:00:23.2]} 33... Ne3 {[%clk 0:02:32]} 34. Nxb7 {[%clk 0:00:21.1]}
34... Nc4+ {[%clk 0:02:32.2]} 35. Kc3 {[%clk 0:00:21.3]} 35... Nxd2 {[%clk
0:02:33.4]} 36. Kxd2 {[%clk 0:00:21.6]} 36... Bxa2 {[%clk 0:02:35]} 37. Nc5
{[%clk 0:00:21.2]} 37... Kd6 {[%clk 0:02:33.1]} 38. Nd3 {[%clk 0:00:20.9]} 38...
Be6 {[%clk 0:02:33.3]} 39. e5+ {[%clk 0:00:20]} 39... Ke7 {[%clk 0:02:33.8]} 40.
Ke3 {[%clk 0:00:20.2]} 40... Bc8 {[%clk 0:02:32.2]} 41. Kd4 {[%clk 0:00:20]}
41... h5 {[%clk 0:02:29.6]} 42. Kc5 {[%clk 0:00:19.3]} 42... Kd7 {[%clk
0:02:29]} 43. Nf4 {[%clk 0:00:17.2]} 43... Kc7 {[%clk 0:02:29.1]} 44. Nd5+
{[%clk 0:00:17]} 44... Kd7 {[%clk 0:02:28.7]} 45. Nf6+ {[%clk 0:00:16.4]} 45...
Ke7 {[%clk 0:02:27.8]} 46. Bd5 {[%clk 0:00:14.7]} 46... Bxh3 {[%clk 0:02:27.2]}
47. Kc6 {[%clk 0:00:14.6]} 47... Bf1 {[%clk 0:02:22.6]} 48. Kb7 {[%clk
0:00:14.1]} 48... a6 {[%clk 0:02:22.7]} 49. Bc6 {[%clk 0:00:13.8]} 49... Ke6
{[%clk 0:02:21.6]} 50. Nd7 {[%clk 0:00:11.6]} 50... g5 {[%clk 0:02:19.5]} 51.
Kc7 {[%clk 0:00:08.8]} 51... h4 {[%clk 0:02:17.4]} 52. gxh4 {[%clk 0:00:07.9]}
52... gxh4 {[%clk 0:02:19.3]} 53. Bh1 {[%clk 0:00:08.5]} 53... Bb5 {[%clk
0:02:17.4]} 54. Bc6 {[%clk 0:00:04.7]} 54... h3 {[%clk 0:02:13.2]} 55. Bxb5
{[%clk 0:00:03.4]} 55... axb5 {[%clk 0:02:15.1]} 0-1

[Event "*** Titled Tuesday 3|2 Blitz"]
[Site "Chess.com"]
[Date "2015.05.05"]
[Round "4"]
[White "Mvpag"]
[Black "salomez"]
[Result "0-1"]
[WhiteElo "1943"]
[BlackElo "2137"]
[TimeControl "180+2"]
[EndTime "11:49:25 PDT"]
[Termination "salomez won by resignation"]

1. d4 {[%clk 0:03:01.9]} 1... Nf6 {[%clk 0:03:00.4]} 2. Nf3 {[%clk 0:03:00.9]}
2... g6 {[%clk 0:03:01.6]} 3. c3 {[%clk 0:03:01.6]} 3... Bg7 {[%clk 0:03:02.2]}
4. h3 {[%clk 0:03:03.2]} 4... d5 {[%clk 0:03:03.7]} 5. Nbd2 {[%clk 0:03:03.1]}
5... h6 {[%clk 0:02:55.7]} 6. e3 {[%clk 0:03:02.9]} 6... Bf5 {[%clk 0:02:57]} 7.
Qb3 {[%clk 0:03:01]} 7... Qc8 {[%clk 0:02:56.8]} 8. Be2 {[%clk 0:03:01.7]} 8...
Nc6 {[%clk 0:02:57.5]} 9. O-O {[%clk 0:03:00.9]} 9... O-O {[%clk 0:02:56]} 10.
c4 {[%clk 0:02:58.6]} 10... dxc4 {[%clk 0:02:37.2]} 11. Nxc4 {[%clk 0:02:56.2]}
11... Ne4 {[%clk 0:02:37.4]} 12. Nfd2 {[%clk 0:02:36.1]} 12... Nd6 {[%clk
0:02:35.7]} 13. Bf3 {[%clk 0:02:33.9]} 13... a5 {[%clk 0:02:29.1]} 14. Bxc6
{[%clk 0:02:21.3]} 14... bxc6 {[%clk 0:02:29.6]} 15. Re1 {[%clk 0:01:59.3]}
15... a4 {[%clk 0:02:22.1]} 16. Qd1 {[%clk 0:01:55.9]} 16... Be6 {[%clk
0:02:09.4]} 17. Ne5 {[%clk 0:01:41.5]} 17... c5 {[%clk 0:01:51.5]} 18. Ndf3
{[%clk 0:01:16.4]} 18... cxd4 {[%clk 0:01:44.7]} 19. Nc6 {[%clk 0:01:16.1]}
19... Qd7 {[%clk 0:01:41.5]} 20. Ncxd4 {[%clk 0:01:16]} 20... Bc4 {[%clk
0:01:34.1]} 21. Qc2 {[%clk 0:00:52.8]} 21... c5 {[%clk 0:01:32.8]} 22. Ne2
{[%clk 0:00:52]} 22... a3 {[%clk 0:01:32.6]} 23. Nc3 {[%clk 0:00:51.5]} 23...
axb2 {[%clk 0:01:28.1]} 24. Bxb2 {[%clk 0:00:52.2]} 24... Be6 {[%clk 0:01:27.4]}
25. Red1 {[%clk 0:00:50.9]} 25... Qc8 {[%clk 0:01:28.2]} 26. Ne2 {[%clk
0:00:39.4]} 26... Bf5 {[%clk 0:01:14.5]} 27. Qc1 {[%clk 0:00:39]} 27... Bxb2
{[%clk 0:00:59.7]} 28. Qxb2 {[%clk 0:00:40.9]} 28... Qc7 {[%clk 0:00:47.5]} 29.
Nh4 {[%clk 0:00:40]} 29... Be6 {[%clk 0:00:44.5]} 30. Qe5 {[%clk 0:00:40.3]}
30... Bxa2 {[%clk 0:00:36.6]} 31. Nxg6 {[%clk 0:00:27.1]} 31... fxg6 {[%clk
0:00:36.6]} 32. Rxa2 {[%clk 0:00:27.5]} 32... Rxa2 {[%clk 0:00:32.3]} 33. Qe6+
{[%clk 0:00:28.4]} 33... Kh7 {[%clk 0:00:31]} 34. Qxa2 {[%clk 0:00:28.8]} 34...
c4 {[%clk 0:00:32.1]} 35. Nc3 {[%clk 0:00:29]} 35... Qc5 {[%clk 0:00:28.7]} 36.
Rd4 {[%clk 0:00:27.2]} 36... Qe5 {[%clk 0:00:25.6]} 37. Qa6 {[%clk 0:00:23.5]}
37... Rb8 {[%clk 0:00:22.8]} 38. g3 {[%clk 0:00:22]} 38... Rb2 {[%clk
0:00:22.4]} 39. Qa7 {[%clk 0:00:20.9]} 39... Rc2 {[%clk 0:00:14.7]} 40. Nb5
{[%clk 0:00:10.2]} 40... Nxb5 {[%clk 0:00:14.3]} 41. Qb7 {[%clk 0:00:10.9]}
41... Nxd4 {[%clk 0:00:14.6]} 42. exd4 {[%clk 0:00:12.3]} 42... Qe1+ {[%clk
0:00:15.3]} 43. Kg2 {[%clk 0:00:10.7]} 43... Qxf2+ {[%clk 0:00:16.2]} 0-1